Workbook

Sheet полевые раб.
B1: ИНФОРМАЦИЯ ПО ВЕРЕЩАГИНСКОМУ РАЙОНУ
A2: Полевые работы на 31.05.2019
A3: Наименование хозяйства | D3: Подкормка многолетних трав, га | E3: Подкормка озимых, га | F3: Боронование многолетних трав, га | G3: Боронование озимых, га | H3: Весновспашка,га | I3: Культивация | J3: Закрытие влаги, га | K3: Протравлено семян, т
A4: ОАО ППС "Тимирязевский" | D4: 98 | E4: 30 | F4: 400 | I4: 23 | J4: 34 | L4: закончили
A5: ООО "Ленинское" | F5: 750 | I5: 20 | J5: 20 | L5: закончили
A6: ООО "Агросепыч" | D6: 458 | E6: 134 | F6: 2100 | G6: 134 | I6: 1707 | J6: 1729
A7: ООО АП "Соколово" | F7: 800 | I7: 690 | J7: 530 | L7: закончили
A8: ООО АФ "Галинское" | F8: 2936 | H8: 900 | I8: 900 | J8: 0 | L8: закончили
A9: ООО "Заполье" | D9: 240 | F9: 900 | I9: 1000 | J9: 1300 | L9: закончили, остался посев однолетки
A10: ООО АП "Заря Путино" | D10: 3245 | E10: 620 | F10: 3245 | G10: 953 | H10: 200 | I10: 5089 | J10: 5089 | K10: 727
A11: Итого по предприятиям: | D11: =SUM(D4:D10) -> 4041 | E11: 784 | F11: 11131 | G11: 1087 | H11: 1100 | I11: 9429 | J11: =SUM(J4:J10) -> 8702 | K11: =SUM(K4:K10) -> 727
A12: КФХ | D12: 150 | F12: 1269.2 | H12: 100 | I12: 669 | J12: 711 | L12: закончили
A13: ВСЕГО: | D13: =D11+D12 -> 4191 | E13: =E11+E12 -> 784 | F13: 12400.2 | G13: 1087 | H13: 1200 | I13: 10098 | J13: 9413 | K13: 727
A14: По району на 31.05.2018г. | D14: 3198 | E14: 695 | F14: 10569.5 | G14: 285 | I14: 8746 | J14: 8923.7 | K14: 755

Sheet сев
A2: Наименование хозяйства | D2: Яровой сев (зерновые и зернобобовые), га | S2: Зрновые и зернобобовые, всего, га | V2: Яровой сев (прочие), га | AE2: Яровой сев, всего, га | AG2: %
D3: пшеница | G3: ячмень | J3: овес | M3: горох | P3: прочие | S3: План | T3: Факт | U3: % | V3: рапс | Y3: кукуруза | AB3: однолетние | AC3: мн. травы б/п | AD3: картофель | AE3: План | AF3: Факт
D4: план | E4: факт | F4: % | G4: план | H4: факт | I4: % | J4: план | K4: факт | L4: % | M4: план | N4: факт | O4: % | P4: план | Q4: факт | R4: % | V4: план | W4: факт | X4: % | Y4: план | Z4: факт | AA4: %
A5: ОАО ППС "Тимирязевский" | F5: =E5/D5*100 ->  | I5: =H5/G5*100 ->  | L5: =K5/J5*100 ->  | O5: =N5/M5*100 ->  | R5: =Q5/P5*100 ->  | S5: 0 | T5: 0 | U5: =T5/S5*100 ->  | X5: =W5/V5*100 ->  | AA5: =Z5/Y5*100 ->  | AB5: 34 | AE5: 34 | AF5: =T5+W5+Z5+AB5+AC5+AD5 -> 34 | AG5: =AF5/AE5*100 -> 100.0 | AH5: закончили 14.05.2019
A6: ООО "Ленинское" | F6: =E6/D6*100 ->  | I6: =H6/G6*100 ->  | L6: =K6/J6*100 ->  | O6: =N6/M6*100 ->  | R6: =Q6/P6*100 ->  | S6: 0 | T6: 0 | AB6: 20 | AE6: 20 | AF6: =T6+W6+Z6+AB6+AC6+AD6 -> 20 | AG6: 100.0 | AH6: закончили 23.05.2019
A7: ООО "Агросепыч" | D7: 824 | E7: 716 | F7: 86.89 | G7: 885 | H7: 683 | I7: 77.18 | J7: 402 | K7: 266 | L7: 66.17 | M7: 265 | N7: 5 | O7: 1.89 | Q7: 397 | S7: 2376 | T7: =E7+H7+K7+N7+Q7 -> 2067 | U7: 86.99 | AB7: 346 | AE7: 3390 | AF7: 2413 | AG7: 71.2
A8: ООО АП "Соколово" | D8: 120 | E8: 120 | F8: 100.00 | J8: 170 | K8: 170 | L8: 100.00 | S8: 290 | T8: =E8+H8+K8+N8+Q8 -> 290 | U8: 100.00 | AB8: 400 | AE8: 690 | AF8: 690 | AG8: 100.0 | AH8: 200 га многолетние п/п, закончили сев 27.05.2019
A9: ООО АФ "Галинское" | D9: 80 | E9: 50 | F9: 62.50 | J9: 290 | K9: 320 | L9: 110.34 | S9: 370 | T9: 370 | U9: 100.00 | AB9: 280 | AC9: 250 | AE9: 900 | AF9: 900 | AG9: 100.0 | AH9: закончили 31.05.2019
A10: ООО "Заполье" | D10: 100 | E10: 100 | F10: 100.00 | G10: 112 | H10: 112 | I10: 100.00 | J10: 288 | K10: 288 | L10: 100.00 | S10: 500 | T10: 500 | U10: 100.00 | AB10: 800 | AE10: 1300 | AF10: 1300 | AG10: 100.0 | AH10: закончили 30.05.2019
A11: ООО АП "Заря Путино" | D11: 388 | E11: 388 | F11: 100.00 | G11: 1272 | H11: 1272 | I11: 100.00 | J11: 398 | K11: 398 | L11: 100.00 | M11: 115 | N11: 115 | O11: 100.00 | S11: 2173 | T11: =E11+H11+K11+N11+Q11 -> 2173 | U11: 100.00 | V11: 632 | W11: 632 | X11: 100.00 | Y11: 952 | Z11: 774 | AA11: 81.30 | AB11: 1194 | AE11: 5486 | AF11: 4773 | AG11: 87.0
A12: Итого по предприятиям: | D12: =SUM(D5:D11) -> 1512 | E12: =SUM(E5:E11) -> 1374 | F12: 90.87 | G12: 2269 | H12: 2067 | I12: 91.10 | J12: 1548 | K12: 1442 | L12: 93.15 | M12: 380 | N12: 120 | O12: 31.58 | P12: 0 | Q12: 397 | S12: 5709 | T12: 5400 | U12: 94.59 | V12: 632 | W12: 632 | X12: 100.00 | Y12: 952 | Z12: 774 | AA12: 81.30 | AB12: 3074 | AC12: 250 | AD12: 0 | AE12: 11820 | AF12: 10130 | AG12: 85.7
A13: КФХ | D13: 397 | E13: 397 | F13: 100.00 | G13: 63 | H13: 63 | I13: 100.00 | J13: 278 | K13: 278 | L13: 100.00 | S13: 738 | T13: =E13+H13+K13+N13+Q13 -> 738 | U13: 100.00 | AD13: 13.5 | AE13: 751.5 | AF13: 751.5 | AG13: 100.0
A14: ВСЕГО: | D14: =D12+D13 -> 1909 | E14: =E12+E13 -> 1771 | F14: 92.77 | G14: 2332 | H14: 2130 | I14: 91.34 | J14: 1826 | K14: 1720 | L14: 94.19 | M14: 380 | N14: 120 | O14: 31.58 | P14: 0 | Q14: 397 | S14: 6447 | T14: 6138 | U14: 95.21 | V14: 632 | W14: 632 | X14: 100.00 | Y14: 952 | Z14: 774 | AA14: 81.30 | AB14: 3074 | AC14: 250 | AD14: 13.5 | AE14: 12571.5 | AF14: 10881.5 | AG14: 86.6
A15: По району на 31.05.2018г. | E15: 1446 | H15: 1804 | K15: 2083 | N15: 454 | Q15: 0 | T15: 5476 | W15: 284 | Z15: 437 | AB15: 1976 | AC15: 165 | AD15: 10.7 | AF15: 8660 | AG15: 70.2

Sheet полев.раб.КФХ
A1: Полевые работы
A2: Наименование хозяйства | D2: Подкормка многолетних трав, га | E2: Подкормка озимых, га | F2: Боронование многолетних трав, га | G2: Боронование озимых, га | H2: Весновспашка,га | I2: Культивация | J2: Закрытие влаги, га | K2: Протравлено семян, т
A3: Азанов П.И. | F3: 50 | H3: 15 | I3: 35 | J3: 35
A4: Мартюшев В.А. | F4: 40 | I4: 138 | J4: 138 | L4: закр.вл.закончил
A5: Шипицын В.А. | F5: 29 | J5: 31 | L5: закончил
A6: Филимонов М.П. | F6: 110 | H6: 70 | I6: 350 | J6: 350
A7: Кадочников В.А. | F7: 277 | I7: 50 | J7: 50 | L7: закончил
A8: Соловьев (проч.) | F8: 133.2 | I8: 38 | J8: 57 | L8: закончил
A9: Илюшин П.З. (проч.) | F9: 499 | I9: 1 | L9: закончил
A10: Баженов С.С. (проч.) | F10: 28 | I10: 20 | J10: 20 | L10: закончил
A11: Шалунцов О.С. | I11: 7 | L11: закончил
A12: Жданов А.И. (проч.) | F12: 60 | H12: 15 | I12: 30 | J12: 30 | L12: закончил
A13: Сулима И.А. | D13: 150 | F13: 43
A14: ВСЕГО: | D14: =SUM(D3:D13) -> 150 | E14: =SUM(E3:E13) -> 0 | F14: =SUM(F3:F13) -> 1269.2 | G14: =SUM(G3:G13) -> 0 | H14: 100 | I14: 669 | J14: 711 | K14: 0

Sheet сев КФХ
A2: Наименование хозяйства | D2: Посев зерновых и зернобобовых, га | S2: Всего зерновых и зернобобовых, га | V2: Яровой сев, га | AF2: Яровой сев всего, га | AH2: %
D3: пшеница | G3: ячмень | J3: овес | M3: горох | P3: вика | S3: План | T3: Факт | U3: % | V3: рапс | Y3: кукуруза | AB3: картофель | AC3: прочие однолетние | AD3: мн. травы б/п | AE3: мног.травы подпокр. | AF3: План | AG3: Факт | AI3: законч.сев
D4: план | E4: факт | F4: % | G4: план | H4: факт | I4: % | J4: план | K4: факт | L4: % | M4: план | N4: факт | O4: % | P4: план | Q4: факт | R4: % | V4: план | W4: факт | X4: % | Y4: план | Z4: факт | AA4: %
A5: Азанов П.И. | D5: 35 | E5: 35 | F5: =E5/D5*100 -> 100 | I5: =H5/G5*100 ->  | J5: 15 | K5: 15 | L5: =K5/J5*100 -> 100 | O5: =N5/M5*100 ->  | R5: =Q5/P5*100 ->  | S5: =D5+G5+J5+M5+P5 -> 50 | T5: =E5+H5+K5+N5+Q5 -> 50 | U5: =T5/S5*100 -> 100 | X5: =W5/V5*100 ->  | AA5: =Z5/Y5*100 ->  | AF5: 50 | AG5: =T5+W5+Z5+AB5+AC5+AD5 -> 50 | AH5: =AG5/AF5*100 -> 100.0 | AI5: 2019-05-21
A6: Мартюшев В.А. | D6: 51 | E6: 51 | F6: =E6/D6*100 -> 100 | G6: 41 | H6: 41 | I6: =H6/G6*100 -> 100 | J6: 46 | K6: 46 | L6: =K6/J6*100 -> 100 | O6: =N6/M6*100 ->  | R6: =Q6/P6*100 ->  | S6: =D6+G6+J6+M6+P6 -> 138 | T6: =E6+H6+K6+N6+Q6 -> 138 | U6: 100.0 | X6: =W6/V6*100 ->  | AA6: =Z6/Y6*100 ->  | AF6: 138 | AG6: =T6+W6+Z6+AB6+AC6+AD6 -> 138 | AH6: 100.0 | AI6: 2019-05-21
A7: Шипицын В.А. | D7: 21 | E7: 21 | F7: 100 | J7: 15 | K7: 15 | L7: 100 | S7: 36 | T7: 36 | U7: 100.0 | AF7: 36 | AG7: 36 | AH7: 100.0 | AI7: 2019-05-12
A8: Филимонов М.П. | D8: 236 | E8: 236 | F8: 100 | J8: 130 | K8: 130 | L8: 100 | S8: 366 | T8: 366 | U8: 100.0 | AE8: 63 | AF8: 366 | AG8: 366 | AH8: 100.0 | AI8: 2019-05-22
A9: Кадочников В.А. | D9: 25 | E9: 25 | F9: 100 | J9: 25 | K9: 25 | L9: 100 | S9: 50 | T9: 50 | U9: 100.0 | AF9: 50 | AG9: 50 | AH9: 100.0 | AI9: 2019-05-20
A10: Сольвьев (проч.) | D10: 14 | E10: 14 | F10: 100 | G10: 12 | H10: 12 | I10: 100 | J10: 32 | K10: 32 | L10: 100 | S10: 58 | T10: 58 | U10: 100.0 | AF10: 58 | AG10: 58 | AH10: 100.0 | AI10: 2019-05-21
A11: Илюшин П.З. (проч.) | S11: 0 | T11: 0 | AB11: 1 | AF11: 1 | AG11: 1 | AH11: 100.0 | AI11: 2019-05-16
A12: Баженов С.С. (проч.) | D12: 10 | E12: 10 | F12: 100 | J12: 10 | K12: 10 | L12: 100 | S12: 20 | T12: 20 | U12: 100.0 | AC12: =SUM(AC5:AC11) -> 0 | AF12: 20 | AG12: 20 | AH12: 100.0 | AI12: 2019-05-21
A13: Жданов А.И. (проч.) | D13: 5 | E13: 5 | F13: 100 | G13: 10 | H13: 10 | I13: 100 | J13: 5 | K13: 5 | L13: 100 | S13: 20 | T13: 20 | U13: 100.0 | AB13: 5 | AF13: 25 | AG13: 25 | AH13: 100.0 | AI13: 2019-05-12
A14: Шалунцов О.С. | AB14: 7.5 | AF14: 7.5 | AG14: 7.5 | AH14: 100.0 | AI14: 2019-05-26
A15: ВСЕГО: | D15: =SUM(D5:D13) -> 397 | E15: =SUM(E5:E13) -> 397 | F15: 100 | G15: 63 | H15: 63 | I15: 100 | J15: 278 | K15: 278 | L15: 100 | M15: 0 | N15: 0 | P15: 0 | Q15: 0 | S15: 738 | T15: 738 | V15: 0 | W15: 0 | Y15: 0 | Z15: 0 | AB15: =SUM(AB5:AB14) -> 13.5 | AC15: 0 | AD15: 0 | AE15: 63 | AF15: =SUM(AF5:AF14) -> 751.5 | AG15: =T15+W15+Z15+AB15+AC15+AD15 -> 751.5 | AH15: 100.0
A18: Сулима И.А. многолетние п/п 43 га (клевер, люцерна, овес, клевер, тимофеевка)
A20: Мальцева Л.В. 3 га картофель
